[Event "Schachfestival Basel 2017"]
[Site "Basel"]
[Date "2017.01.08"]
[Round "9"]
[White "Abasov, Nijat"]
[Black "Safarli, Eltaj"]
[Result "1/2-1/2"]
[ECO "C67"]
[WhiteElo "2561"]
[BlackElo "2686"]
[PlyCount "23"]
[EventDate "2017.??.??"]
[EventType "swiss"]
[EventCountry "SUI"]
[SourceTitle "playchess.com"]
[Source "ChessBase"]
[TimeControl "40/6000+30:1800+30"]

1. e4 e5 2. Nf3 Nc6 3. Bb5 Nf6 4. O-O Nxe4 5. d4 Nd6 6. dxe5 Nxb5 7. a4 Nbd4 8.
Nxd4 d5 9. exd6 Nxd4 10. Qxd4 Qxd6 11. Qe4+ Qe6 12. Qd4 1/2-1/2

[Event "Schachfestival Basel 2017"]
[Site "Basel"]
[Date "2017.01.08"]
[Round "9"]
[White "Bai, Jinshi"]
[Black "Bellahcene, Bilel"]
[Result "1-0"]
[ECO "D30"]
[WhiteElo "2560"]
[BlackElo "2493"]
[PlyCount "47"]
[EventDate "2017.??.??"]
[EventType "swiss"]
[EventCountry "SUI"]
[SourceTitle "playchess.com"]
[Source "ChessBase"]
[TimeControl "40/6000+30:1800+30"]

1. d4 {[%emt 0:00:46]} d5 {[%emt 0:00:05]} 2. c4 {[%emt 0:00:07]} e6 {[%emt 0:
00:03]} 3. Nf3 {[%emt 0:00:18]} Nf6 {[%emt 0:00:05]} 4. g3 {[%emt 0:02:36]}
Bb4+ {[%emt 0:00:07]} 5. Nbd2 {[%emt 0:03:18]} O-O {[%emt 0:00:13]} 6. Bg2 {
[%emt 0:00:08]} b6 {[%emt 0:00:05]} 7. O-O {[%emt 0:00:40]} Bb7 {[%emt 0:00:07]
} 8. b3 {[%emt 0:00:43]} c5 {[%emt 0:13:20]} 9. Bb2 {[%emt 0:02:11]} cxd4 {
[%emt 0:10:33]} 10. Nxd4 {[%emt 0:00:55]} Qe7 {[%emt 0:05:37]} 11. Nc2 {
[%emt 0:11:57]} Bc5 {[%emt 0:16:17]} 12. b4 {[%emt 0:21:28]} Bd6 {[%emt 0:15:
19]} 13. Bxf6 {[%emt 0:17:46]} Qxf6 {[%emt 0:04:19]} 14. cxd5 {[%emt 0:00:25]}
exd5 {[%emt 0:01:08]} 15. Nc4 {[%emt 0:17:59]} Na6 {[%emt 0:02:37]} 16. a3 {
[%emt 0:02:26]} Rfd8 {[%emt 0:04:27]} 17. Nxd6 {[%emt 0:01:56]} Qxd6 {[%emt 0:
00:28]} 18. Nd4 {[%emt 0:00:11]} Nc7 {[%emt 0:00:36]} 19. Rc1 {[%emt 0:04:01]}
Ne6 {[%emt 0:02:19]} 20. Qd2 {[%emt 0:02:28]} a5 {[%emt 0:06:46]} 21. Rfd1 {
[%emt 0:01:52]} axb4 {[%emt 0:02:04]} 22. Qxb4 {[%emt 0:03:31]} Nxd4 {[%emt 0:
03:25]} 23. Rxd4 {[%emt 0:01:31]} Rxa3 {[%emt 0:00:19]} 24. Rxd5 {[%emt 0:01:
13]} 1-0

[Event "Schachfestival Basel 2017"]
[Site "Basel"]
[Date "2017.01.08"]
[Round "9"]
[White "Bauer, Christian"]
[Black "Donchenko, Alexander"]
[Result "1-0"]
[ECO "B20"]
[WhiteElo "2635"]
[BlackElo "2559"]
[PlyCount "87"]
[EventDate "2017.??.??"]
[EventType "swiss"]
[EventCountry "SUI"]
[SourceTitle "playchess.com"]
[Source "ChessBase"]
[TimeControl "40/6000+30:1800+30"]

1. e4 {[%emt 0:00:00]} c5 {[%emt 0:00:47]} 2. Na3 {[%emt 0:00:13]} d6 {[%emt 0:
06:09]} 3. c3 {[%emt 0:03:31]} Nf6 {[%emt 0:02:10]} 4. g3 {[%emt 0:01:02]} g6 {
[%emt 0:17:20]} 5. Bg2 {[%emt 0:00:30]} Bg7 {[%emt 0:00:14]} 6. d4 {[%emt 0:01:
29]} cxd4 {[%emt 0:10:09]} 7. cxd4 {[%emt 0:02:02]} O-O {[%emt 0:00:30]} 8. Ne2
{[%emt 0:00:30]} Bg4 {[%emt 0:00:30]} 9. f3 {[%emt 0:00:30]} Bd7 {[%emt 0:00:
30]} 10. Be3 {[%emt 0:00:30]} d5 {[%emt 0:00:30]} 11. e5 {[%emt 0:00:30]} Ne8 {
[%emt 0:00:30]} 12. Qb3 {[%emt 0:00:30]} Nc7 {[%emt 0:00:30]} 13. Qxb7 {
[%emt 0:00:30]} Nc6 {[%emt 0:00:30]} 14. Qb3 {[%emt 0:00:30]} Rb8 {[%emt 0:00:
30]} 15. Qc3 {[%emt 0:00:30]} Ne6 {[%emt 0:00:30]} 16. f4 {[%emt 0:00:30]} Qb6
{[%emt 0:00:30]} 17. Bxd5 {[%emt 0:00:30]} Nb4 {[%emt 0:00:30]} 18. Be4 {
[%emt 0:00:30]} Qa6 {[%emt 0:00:30]} 19. Nc2 {[%emt 0:00:30]} Nxc2+ {[%emt 0:
00:30]} 20. Qxc2 {[%emt 0:00:30]} f6 {[%emt 0:00:30]} 21. O-O {[%emt 0:00:30]}
Qb6 {[%emt 0:00:30]} 22. Qd2 {[%emt 0:00:30]} Qxb2 {[%emt 0:00:30]} 23. Qxb2 {
[%emt 0:00:30]} Rxb2 {[%emt 0:00:30]} 24. Nc3 {[%emt 0:00:30]} Rc8 {[%emt 0:00:
30]} 25. Rfc1 {[%emt 0:00:30]} Kf8 {[%emt 0:00:30]} 26. Rab1 {[%emt 0:00:30]}
Rxb1 {[%emt 0:00:30]} 27. Bxb1 {[%emt 0:00:30]} Nc7 {[%emt 0:00:30]} 28. Be4 {
[%emt 0:00:30]} e6 {[%emt 0:00:30]} 29. Bb7 {[%emt 0:00:30]} Rb8 {[%emt 0:00:
30]} 30. Ne4 {[%emt 0:00:30]} Ne8 {[%emt 0:00:30]} 31. Nc5 {[%emt 0:00:30]} Ke7
{[%emt 0:00:30]} 32. Bd2 {[%emt 0:00:30]} Bc8 {[%emt 0:00:30]} 33. Bxc8 {
[%emt 0:00:30]} Rxc8 {[%emt 0:00:30]} 34. Rb1 {[%emt 0:00:30]} fxe5 {[%emt 0:
00:30]} 35. fxe5 {[%emt 0:00:30]} h6 {[%emt 0:00:30]} 36. Ba5 {[%emt 0:00:30]}
Kf7 {[%emt 0:00:30]} 37. Rb7+ {[%emt 0:00:30]} Kg8 {[%emt 0:00:30]} 38. Nxe6 {
[%emt 0:00:30]} Rc1+ {[%emt 0:00:30]} 39. Kf2 {[%emt 0:00:30]} Rc2+ {[%emt 0:
00:30]} 40. Kf3 {[%emt 0:00:30]} Rxa2 {[%emt 0:30:30]} 41. Rxa7 {[%emt 0:30:30]
} Bh8 {[%emt 0:00:30]} 42. Nf4 {[%emt 0:00:30]} g5 {[%emt 0:00:30]} 43. Nd5 {
[%emt 0:00:30]} Ra4 {[%emt 0:00:30]} 44. Bb6 {[%emt 0:00:30]} 1-0

[Event "Schachfestival Basel 2017"]
[Site "Basel"]
[Date "2017.01.08"]
[Round "9"]
[White "Deepan Chakkravarthy J"]
[Black "Kunin, Vitaly"]
[Result "1-0"]
[ECO "A10"]
[WhiteElo "2485"]
[BlackElo "2576"]
[PlyCount "119"]
[EventDate "2017.??.??"]
[EventType "swiss"]
[EventCountry "SUI"]
[SourceTitle "playchess.com"]
[Source "ChessBase"]
[TimeControl "40/6000+30:1800+30"]

1. c4 {[%emt 0:07:52]} b6 {[%emt 0:01:26]} 2. Nc3 {[%emt 0:00:51]} Bb7 {
[%emt 0:00:09]} 3. Nf3 {[%emt 0:00:57]} e6 {[%emt 0:00:51]} 4. b3 {[%emt 0:00:
15]} c5 {[%emt 0:04:01]} 5. Bb2 {[%emt 0:01:04]} Nf6 {[%emt 0:00:07]} 6. e3 {
[%emt 0:00:16]} Be7 {[%emt 0:00:08]} 7. Be2 {[%emt 0:00:07]} O-O {[%emt 0:00:
06]} 8. O-O {[%emt 0:00:03]} d6 {[%emt 0:00:31]} 9. d4 {[%emt 0:00:43]} cxd4 {
[%emt 0:00:30]} 10. Nxd4 {[%emt 0:00:06]} a6 {[%emt 0:00:38]} 11. Bf3 {[%emt 0:
00:21]} Ra7 {[%emt 0:00:31]} 12. Rc1 {[%emt 0:00:50]} Qd7 {[%emt 0:04:06]} 13.
a3 {[%emt 0:02:48]} h6 {[%emt 0:10:04]} 14. h3 {[%emt 0:02:43]} Rc8 {[%emt 0:
03:00]} 15. Re1 {[%emt 0:02:40]} Bxf3 {[%emt 0:05:45]} 16. Qxf3 {[%emt 0:00:45]
} Qb7 {[%emt 0:00:10]} 17. e4 {[%emt 0:05:11]} Nbd7 {[%emt 0:01:18]} 18. Qe2 {
[%emt 0:00:08]} Nh7 {[%emt 0:11:38]} 19. Rcd1 {[%emt 0:02:40]} Nc5 {[%emt 0:02:
52]} 20. f4 {[%emt 0:02:59]} Nf8 {[%emt 0:02:30]} 21. b4 {[%emt 0:23:51]} Ncd7
{[%emt 0:00:07]} 22. Nd5 {[%emt 0:00:12]} exd5 {[%emt 0:18:20]} 23. Nf5 {
[%emt 0:00:12]} Nf6 {[%emt 0:07:08]} 24. Bxf6 {[%emt 0:05:47]} Bxf6 {[%emt 0:
00:40]} 25. Nxd6 {[%emt 0:00:07]} Qb8 {[%emt 0:00:19]} 26. Nxc8 {[%emt 0:00:09]
} Qxc8 {[%emt 0:00:08]} 27. cxd5 {[%emt 0:00:37]} Rc7 {[%emt 0:01:21]} 28. e5 {
[%emt 0:00:52]} Bh4 {[%emt 0:02:54]} 29. Rf1 {[%emt 0:00:16]} f5 {[%emt 0:07:
01]} 30. Qe3 {[%emt 0:09:16]} Rc2 {[%emt 0:01:34]} 31. Rd2 {[%emt 0:02:51]} Rc3
{[%emt 0:01:21]} 32. Rd3 {[%emt 0:01:10]} Rc2 {[%emt 0:00:22]} 33. e6 {[%emt 0:
02:05]} Qc4 {[%emt 0:03:57]} 34. Rd2 {[%emt 0:04:44]} Rxd2 {[%emt 0:11:42]} 35.
Qxd2 {[%emt 0:00:15]} Nxe6 {[%emt 0:00:20]} 36. dxe6 {[%emt 0:00:11]} Qxe6 {
[%emt 0:00:05]} 37. Kh2 {[%emt 0:00:19]} Kh7 {[%emt 0:00:11]} 38. Rf3 {[%emt 0:
00:18]} Bf6 {[%emt 0:00:24]} 39. Qd3 {[%emt 0:01:10]} b5 {[%emt 0:00:24]} 40.
Re3 {[%emt 0:00:12]} Qc8 {[%emt 0:30:05]} 41. Qd5 {[%emt 0:30:08]} Qc2 {
[%emt 0:01:29]} 42. Rd3 {[%emt 0:01:46]} Kg6 {[%emt 0:00:26]} 43. Rg3+ {
[%emt 0:06:31]} Kh7 {[%emt 0:00:07]} 44. Qd3 {[%emt 0:00:03]} Qc8 {[%emt 0:00:
15]} 45. Re3 {[%emt 0:01:14]} h5 {[%emt 0:02:46]} 46. g4 {[%emt 0:02:46]} hxg4
{[%emt 0:00:07]} 47. hxg4 {[%emt 0:00:02]} g6 {[%emt 0:00:10]} 48. g5 {[%emt 0:
01:12]} Ba1 {[%emt 0:00:31]} 49. Re7+ {[%emt 0:02:10]} Bg7 {[%emt 0:00:22]} 50.
Qd4 {[%emt 0:01:44]} Qg8 {[%emt 0:01:30]} 51. Qc3 {[%emt 0:02:12]} Qf8 {
[%emt 0:00:45]} 52. Qf6 {[%emt 0:00:39]} Qg8 {[%emt 0:01:32]} 53. Qf7 {[%emt 0:
00:12]} Qxf7 {[%emt 0:01:55]} 54. Rxf7 {[%emt 0:00:07]} Kg8 {[%emt 0:00:04]}
55. Ra7 {[%emt 0:00:05]} Bb2 {[%emt 0:00:11]} 56. Rxa6 {[%emt 0:00:05]} Kf7 {
[%emt 0:00:05]} 57. Kg3 {[%emt 0:00:03]} Bd4 {[%emt 0:00:16]} 58. Ra5 {[%emt 0:
00:13]} Bb2 {[%emt 0:00:07]} 59. Rxb5 {[%emt 0:00:04]} Bxa3 {[%emt 0:00:06]}
60. Rb7+ {[%emt 0:00:09]} 1-0

[Event "Schachfestival Basel 2017"]
[Site "Basel"]
[Date "2017.01.08"]
[Round "9"]
[White "Gao, Rui"]
[Black "Chu, Wei Chao"]
[Result "1-0"]
[ECO "A05"]
[WhiteElo "2544"]
[BlackElo "2289"]
[PlyCount "89"]
[EventDate "2017.??.??"]
[EventType "swiss"]
[EventCountry "SUI"]
[SourceTitle "playchess.com"]
[Source "ChessBase"]
[TimeControl "40/6000+30:1800+30"]

1. Nf3 {[%emt 0:00:35]} Nf6 {[%emt 0:01:29]} 2. c4 {[%emt 0:01:13]} c5 {
[%emt 0:01:42]} 3. g3 {[%emt 0:01:26]} b6 {[%emt 0:03:10]} 4. Bg2 {[%emt 0:00:
21]} Bb7 {[%emt 0:00:05]} 5. O-O {[%emt 0:00:40]} e6 {[%emt 0:00:09]} 6. b3 {
[%emt 0:02:35]} Be7 {[%emt 0:00:48]} 7. Bb2 {[%emt 0:07:14]} O-O {[%emt 0:00:
36]} 8. Nc3 {[%emt 0:02:25]} d6 {[%emt 0:02:35]} 9. e3 {[%emt 0:01:44]} Nbd7 {
[%emt 0:04:07]} 10. Qe2 {[%emt 0:03:16]} Qb8 {[%emt 0:02:00]} 11. Rfd1 {
[%emt 0:19:49]} a6 {[%emt 0:04:45]} 12. d4 {[%emt 0:06:40]} Rd8 {[%emt 0:10:52]
} 13. e4 {[%emt 0:08:01]} cxd4 {[%emt 0:00:23]} 14. Nxd4 {[%emt 0:00:02]} Qa7 {
[%emt 0:00:56]} 15. Kh1 {[%emt 0:07:55]} Rac8 {[%emt 0:02:20]} 16. g4 {[%emt 0:
00:26]} g6 {[%emt 0:06:51]} 17. f4 {[%emt 0:02:15]} Qa8 {[%emt 0:03:34]} 18. g5
{[%emt 0:07:20]} Nh5 {[%emt 0:01:44]} 19. Qg4 {[%emt 0:00:03]} Nxf4 {[%emt 0:
16:52]} 20. Qxf4 {[%emt 0:01:53]} e5 {[%emt 0:00:05]} 21. Qg3 {[%emt 0:01:39]}
exd4 {[%emt 0:00:07]} 22. Nd5 {[%emt 0:00:03]} Bxd5 {[%emt 0:00:08]} 23. exd5 {
[%emt 0:00:04]} b5 {[%emt 0:02:50]} 24. Rxd4 {[%emt 0:03:13]} bxc4 {[%emt 0:00:
54]} 25. bxc4 {[%emt 0:04:30]} Qb7 {[%emt 0:03:26]} 26. Bc3 {[%emt 0:02:51]}
Ne5 {[%emt 0:04:29]} 27. Rf1 {[%emt 0:01:04]} Bf8 {[%emt 0:01:50]} 28. Rh4 {
[%emt 0:03:05]} Re8 {[%emt 0:04:17]} 29. Rhf4 {[%emt 0:05:56]} Bg7 {[%emt 0:04:
04]} 30. Qh3 {[%emt 0:00:06]} Rc7 {[%emt 0:01:07]} 31. Bxe5 {[%emt 0:05:38]}
Rxe5 {[%emt 0:09:47]} 32. Qg4 {[%emt 0:00:03]} Ree7 {[%emt 0:04:39]} 33. Qh4 {
[%emt 0:02:45]} Qb6 {[%emt 0:03:36]} 34. R4f3 {[%emt 0:00:47]} Qc5 {[%emt 0:03:
41]} 35. Rh3 {[%emt 0:00:45]} Qxc4 {[%emt 0:00:06]} 36. Qxh7+ {[%emt 0:00:01]}
Kf8 {[%emt 0:00:01]} 37. Rhf3 {[%emt 0:00:57]} Qc2 {[%emt 0:01:05]} 38. Rf6 {
[%emt 0:02:28]} Re2 {[%emt 0:01:57]} 39. Rxg6 {[%emt 0:01:10]} Qb2 {[%emt 0:00:
57]} 40. Rxd6 {[%emt 0:05:05]} Rxg2 {[%emt 0:31:47]} 41. Rd8+ {[%emt 0:30:52]}
Ke7 {[%emt 0:00:05]} 42. d6+ {[%emt 0:00:08]} Kxd8 {[%emt 0:00:06]} 43. dxc7+ {
[%emt 0:00:03]} Kxc7 {[%emt 0:00:06]} 44. Rxf7+ {[%emt 0:00:02]} Kb6 {[%emt 0:
01:05]} 45. Rxg7 {[%emt 0:01:32]} 1-0

[Event "Schachfestival Basel 2017"]
[Site "Basel"]
[Date "2017.01.08"]
[Round "9"]
[White "Korpa, Bence"]
[Black "Karthikeyan, P.."]
[Result "0-1"]
[ECO "C49"]
[WhiteElo "2473"]
[BlackElo "2488"]
[PlyCount "60"]
[EventDate "2017.??.??"]
[EventType "swiss"]
[EventCountry "SUI"]
[SourceTitle "playchess.com"]
[Source "ChessBase"]
[TimeControl "40/6000+30:1800+30"]

1. e4 {[%emt 0:08:34]} e5 {[%emt 0:03:38]} 2. Nf3 {[%emt 0:00:12]} Nc6 {
[%emt 0:00:07]} 3. Nc3 {[%emt 0:00:07]} Nf6 {[%emt 0:00:06]} 4. Bb5 {[%emt 0:
00:47]} Bb4 {[%emt 0:00:50]} 5. O-O O-O {[%emt 0:00:35]} 6. d3 {[%emt 0:00:38]}
d6 {[%emt 0:03:51]} 7. Bg5 Ne7 {[%emt 0:02:24]} 8. Bc4 {[%emt 0:03:27]} Bxc3 {
[%emt 0:00:30]} 9. bxc3 {[%emt 0:00:08]} Nd7 {[%emt 0:09:55]} 10. d4 {[%emt 0:
00:30]} Kh8 {[%emt 0:00:30]} 11. dxe5 {[%emt 0:00:30]} dxe5 {[%emt 0:00:30]}
12. Bc1 {[%emt 0:00:30]} f6 {[%emt 0:00:30]} 13. Ba3 {[%emt 0:00:30]} Qe8 {
[%emt 0:00:30]} 14. Nh4 {[%emt 0:00:30]} Nb6 {[%emt 0:00:30]} 15. Bb3 {[%emt 0:
00:30]} a5 {[%emt 0:00:30]} 16. Nf5 {[%emt 0:00:30]} Nxf5 {[%emt 0:00:30]} 17.
exf5 {[%emt 0:00:30]} a4 {[%emt 0:00:30]} 18. Be6 {[%emt 0:00:30]} Bxe6 {
[%emt 0:00:30]} 19. fxe6 {[%emt 0:00:30]} Rg8 {[%emt 0:00:30]} 20. e7 {[%emt 0:
00:30]} Nc4 {[%emt 0:00:30]} 21. Bb4 {[%emt 0:00:30]} Qf7 {[%emt 0:00:30]} 22.
Qd7 {[%emt 0:00:30]} Rac8 {[%emt 0:00:30]} 23. Rfd1 {[%emt 0:00:30]} h6 {
[%emt 0:00:30]} 24. Qxc8 {[%emt 0:00:30]} Rxc8 {[%emt 0:00:30]} 25. Rd8+ {
[%emt 0:00:30]} Qe8 {[%emt 0:00:30]} 26. Rxc8 {[%emt 0:00:30]} Qxc8 {[%emt 0:
00:30]} 27. Rd1 {[%emt 0:00:30]} Nd6 {[%emt 0:00:30]} 28. Bxd6 {[%emt 0:00:30]}
Qd7 {[%emt 0:00:30]} 29. Rb1 {[%emt 0:00:30]} cxd6 {[%emt 0:00:30]} 30. Rxb7 {
[%emt 0:00:30]} Qe8 {[%emt 0:00:30]} 0-1

[Event "Schachfestival Basel 2017"]
[Site "Basel"]
[Date "2017.01.08"]
[Round "9"]
[White "Schroeder, Jan-Christian"]
[Black "Heimann, Andreas"]
[Result "1/2-1/2"]
[ECO "B90"]
[WhiteElo "2550"]
[BlackElo "2603"]
[PlyCount "92"]
[EventDate "2017.??.??"]
[EventType "swiss"]
[EventCountry "SUI"]
[SourceTitle "playchess.com"]
[Source "ChessBase"]
[TimeControl "40/6000+30:1800+30"]

1. e4 {[%emt 0:07:38]} c5 {[%emt 0:00:09]} 2. Nf3 {[%emt 0:00:03]} d6 {[%emt 0:
00:04]} 3. d4 {[%emt 0:00:03]} cxd4 {[%emt 0:00:06]} 4. Nxd4 {[%emt 0:00:04]}
Nf6 {[%emt 0:00:06]} 5. Nc3 {[%emt 0:00:02]} a6 {[%emt 0:00:12]} 6. Be3 {
[%emt 0:00:04]} e5 {[%emt 0:00:05]} 7. Nf3 {[%emt 0:00:04]} Be7 {[%emt 0:00:42]
} 8. Bc4 {[%emt 0:00:07]} O-O {[%emt 0:00:05]} 9. O-O {[%emt 0:00:06]} Qc7 {
[%emt 0:00:02]} 10. Bb3 {[%emt 0:03:54]} Be6 {[%emt 0:00:16]} 11. Rc1 {[%emt 0:
11:46]} Nc6 {[%emt 0:17:44]} 12. Bg5 {[%emt 0:03:09]} Rac8 {[%emt 0:12:21]} 13.
Bxf6 {[%emt 0:08:13]} Bxf6 {[%emt 0:00:05]} 14. Nd5 {[%emt 0:00:16]} Bxd5 {
[%emt 0:08:19]} 15. Bxd5 {[%emt 0:00:10]} Bd8 {[%emt 0:00:09]} 16. c3 {[%emt 0:
04:58]} Ne7 {[%emt 0:09:34]} 17. Bb3 {[%emt 0:04:00]} Qc6 {[%emt 0:00:05]} 18.
Qd3 {[%emt 0:09:50]} Bc7 {[%emt 0:02:32]} 19. Rfd1 {[%emt 0:05:17]} Rcd8 {
[%emt 0:00:52]} 20. Rc2 {[%emt 0:04:08]} g6 {[%emt 0:02:03]} 21. h4 {[%emt 0:
04:28]} Kg7 {[%emt 0:04:14]} 22. Re2 {[%emt 0:04:36]} Bb6 {[%emt 0:01:03]} 23.
Bd5 {[%emt 0:06:39]} Nxd5 {[%emt 0:20:31]} 24. Qxd5 {[%emt 0:00:04]} Qxd5 {
[%emt 0:00:03]} 25. Rxd5 {[%emt 0:00:05]} Kf6 {[%emt 0:00:03]} 26. a4 {[%emt 0:
15:18]} Ke6 {[%emt 0:01:14]} 27. g3 {[%emt 0:00:51]} h6 {[%emt 0:03:41]} 28.
Nd2 {[%emt 0:02:46]} Rc8 {[%emt 0:01:09]} 29. Kg2 {[%emt 0:09:05]} Rfd8 {
[%emt 0:11:07]} 30. c4 Bc5 {[%emt 0:08:40]} 31. b3 {[%emt 0:02:07]} Bb4 {
[%emt 0:00:50]} 32. Nf3 {[%emt 0:02:21]} h5 {[%emt 0:01:05]} 33. Ne1 {[%emt 0:
01:04]} Bxe1 {[%emt 0:00:57]} 34. Rxe1 {[%emt 0:00:01]} Rc5 {[%emt 0:00:09]}
35. Red1 {[%emt 0:01:13]} Rxd5 {[%emt 0:00:26]} 36. Rxd5 {[%emt 0:00:02]} f5 {
[%emt 0:01:26]} 37. f3 {[%emt 0:00:26]} Rf8 {[%emt 0:01:15]} 38. Rd2 {[%emt 0:
01:37]} b6 {[%emt 0:02:19]} 39. Rd5 {[%emt 0:00:46]} Rf7 {[%emt 0:00:52]} 40.
Rd2 {[%emt 0:01:07]} a5 {[%emt 0:31:46]} 41. Rd5 fxe4 {[%emt 0:00:00]} 42. fxe4
{[%emt 0:03:01]} Kd7 {[%emt 0:00:00]} 43. Rb5 {[%emt 0:03:39]} Kc6 {[%emt 0:00:
00]} 44. Rd5 Rf8 45. Rb5 {[%emt 0:01:35]} Rg8 {[%emt 0:00:00]} 46. Rd5 Rf8 {
[%emt 0:00:00]} 1/2-1/2

[Event "Schachfestival Basel 2017"]
[Site "Basel"]
[Date "2017.01.08"]
[Round "9"]
[White "Svane, Rasmus"]
[Black "Van Foreest, Jorden"]
[Result "1/2-1/2"]
[ECO "D45"]
[WhiteElo "2560"]
[BlackElo "2612"]
[PlyCount "54"]
[EventDate "2017.??.??"]
[EventType "swiss"]
[EventCountry "SUI"]
[SourceTitle "playchess.com"]
[Source "ChessBase"]
[TimeControl "40/6000+30:1800+30"]

1. d4 {[%emt 0:00:04]} d5 {[%emt 0:00:06]} 2. c4 {[%emt 0:00:06]} c6 {[%emt 0:
00:05]} 3. Nc3 {[%emt 0:00:29]} Nf6 {[%emt 0:00:07]} 4. e3 {[%emt 0:00:07]} e6
{[%emt 0:00:10]} 5. Nf3 {[%emt 0:00:06]} Nbd7 {[%emt 0:00:13]} 6. Qc2 {[%emt 0:
00:07]} b6 {[%emt 0:00:26]} 7. Bd3 {[%emt 0:00:18]} Bb7 {[%emt 0:00:08]} 8. O-O
{[%emt 0:00:07]} Bb4 {[%emt 0:00:05]} 9. Rd1 {[%emt 0:23:13]} O-O {[%emt 0:00:
46]} 10. b3 {[%emt 0:05:00]} c5 {[%emt 0:07:55]} 11. Bb2 {[%emt 0:13:39]} cxd4
{[%emt 0:07:47]} 12. Nxd4 {[%emt 0:00:55]} dxc4 {[%emt 0:00:44]} 13. Bxc4 {
[%emt 0:00:46]} Qe7 {[%emt 0:00:18]} 14. a3 {[%emt 0:15:46]} Bd6 {[%emt 0:06:
58]} 15. Be2 {[%emt 0:08:43]} Rac8 {[%emt 0:05:29]} 16. Bf3 {[%emt 0:08:50]}
Bxf3 {[%emt 0:04:09]} 17. Nxf3 {[%emt 0:00:06]} Ne5 {[%emt 0:00:34]} 18. Nd4 {
[%emt 0:06:53]} Bb8 {[%emt 0:05:00]} 19. Rac1 {[%emt 0:04:27]} Qc7 {[%emt 0:09:
53]} 20. Ndb5 {[%emt 0:02:43]} Qc6 {[%emt 0:08:47]} 21. Qe2 {[%emt 0:01:24]}
Qa8 {[%emt 0:07:04]} 22. Nd6 {[%emt 0:02:44]} Rc6 {[%emt 0:00:15]} 23. Ndb5 {
[%emt 0:00:34]} a6 {[%emt 0:01:43]} 24. Nd4 {[%emt 0:00:05]} Rcc8 {[%emt 0:00:
16]} 25. Nb1 {[%emt 0:04:06]} Qb7 {[%emt 0:03:15]} 26. Nf3 {[%emt 0:02:34]}
Nxf3+ {[%emt 0:01:38]} 27. Qxf3 {[%emt 0:00:05]} Qxf3 {[%emt 0:03:37]} 1/2-1/2